Cogmind - Beta 14 @@@ ROGUE MODE // 2024.08.30 @ 09:07:51 Player: jimmyl Result: Destroyed by D-53 Grenadier with Mini Grenade Launcher Performance ------------- Evolutions (0) 0 Regions Visited (2) 400 Robots Destroyed (4) 20 Value Destroyed (31) 31 Prototype IDs (0) 0 Alien Tech Used (0) 0 Bonus (0) 0 TOTAL SCORE: 451 Bonus ------- None Cogmind --------- Core Integrity 0/250 Matter 197/300 Energy 93/100 System Corruption 0% Temperature Cool (0) Movement Core (150) Ox2 Location -10/Mines Parts ------- > --- POWER (1) -------- (None) > --- PROPULSION (2) --- (None) > --- UTILITY (2) ------ Small Storage Unit > --- WEAPON (2) ------- Heavy Mace > --- INVENTORY (8) ---- Ion Engine Light Treads Light Treads Compact Wheel Small Laser Peak State ------------ > --- POWER ------------ Deuterium Engine > --- PROPULSION ------- Aluminum Leg Aluminum Leg > --- UTILITY ---------- Improved Heat Sink Small Storage Unit > --- WEAPON ----------- Medium Laser Pulse Rifle > --- INVENTORY -------- Ion Engine Light Treads Light Treads Compact Wheel Compact Wheel EM Pulse Gun Small Laser Heavy Mace [Rating: 14] Favorites ----------- Power Deuterium Engine Engine Deuterium Engine Propulsion Aluminum Leg Leg Aluminum Leg Wheel Compact Wheel Utility Small Storage Unit Device Improved Heat Sink Storage Small Storage Unit Weapon Medium Laser Energy Gun Medium Laser Launcher Rocket Launcher Impact Weapon Heavy Mace Build | -11 -10 -10 ------- Run | Yrd Mat Min Slots Evolved . | . . . Power . | . . . Propulsion . | . . . Utility . | . . . Weapon . | . . . Parts Attached 8 | . . 8 Power 1 | . . 1 Engine 1 | . . 1 Core . | . . . Reactor . | . . . Propulsion 1 | . . 1 Treads . | . . . Leg . | . . . Wheel 1 | . . 1 Hover . | . . . Flight . | . . . Utility 1 | . . 1 Device 1 | . . 1 Storage . | . . . Processor . | . . . Hackware . | . . . Protection . | . . . Artifact . | . . . Weapon 5 | . . 5 Energy Gun 2 | . . 2 Energy Cannon . | . . . Ballistic Gun . | . . . Ballistic Cannon . | . . . Launcher 2 | . . 2 Special Weapon . | . . . Impact Weapon 1 | . . 1 Slashing Weapon . | . . . Piercing Weapon . | . . . Special Melee Weapon . | . . . Unidentified Prototypes . | . . . Parts Lost 7 | . . 7 Power 1 | . . 1 Propulsion 3 | . . 3 Utility 1 | . . 1 Weapon 2 | . . 2 Highest Loss Streak 7 | . . 7 To Critical Strikes . | . . . Average Slot Usage (%) 93 | . 85 95 Engine 14 | . 14 14 Leg 26 | . 28 26 Device 9 | . . 12 Storage 14 | . 14 14 Energy Gun 26 | . 28 25 Launcher 1 | . . 2 Peak Build Rating 14 | 6 6 14 Average Rating 11 | 6 6 13 On Entrance 6 | 6 6 6 Naked Turns . | . . . Heaviest Build 21 | 14 14 21 Greatest Support 20 | 20 20 20 Greatest Overweight (x) 2 | . . 2 Average Overweight (x) . | . . . Largest Inventory Capacity 8 | 8 8 8 Average Capacity 8 | 8 8 8 Most Carried 8 | 6 6 8 Average Carried 7 | 6 6 7 Final Capacity 8 | 8 8 8 Final Carried 6 | 6 6 5 Class Distribution -------------------- 100% | Mutant Dominant Class ---------------- Mutant | -10/Materials Mutant | -10/Mines Resources | -11 -10 -10 ----------- Run | Yrd Mat Min Matter Collected 230 | 200 . 30 Remotely . | . . . Salvage Created 90 | . . 90 Parts 6 | . . 6 Haulers Intercepted . | . . . Recyclers Shooed . | . . . Parts Field Recycled . | . . . Retrieved Matter . | . . . Parts Self-Destructed . | . . . Prevented . | . . . Kills | -11 -10 -10 ------- Run | Yrd Mat Min Combat Hostiles Destroyed 17 | . . 17 Guns 3 | . . 3 AOE 14 | . . 14 Classes Destroyed 3 | . . 3 Worker 1 | . . 1 Swarmer 3 | . . 3 Assembled 14 | . . 14 Best Kill Streak 15 | . . 15 Combat Bots Only 14 | . . 14 Max Kills in Single Turn 4 | . . 4 Gunslinging . | . . . Exploded 4 | . . 4 Melee . | . . . Uniques/NPCs Destroyed . | . . . Combat | -11 -10 -10 -------- Run | Yrd Mat Min Hostile Shots Fired 46 | . 1 45 Missed 9 | . . 9 Damage Taken 913 | . 10 903 Core 251 | . . 251 Absorbed by Shields . | . . . Core Remaining (%) 100 | 100 . . Volleys Fired 15 | . . 15 Largest 2 | . . 2 Hottest 113 | . . 113 Shots Fired 19 | . . 19 Gun 11 | . . 11 Cannon . | . . . Launcher 8 | . . 8 Special . | . . . Kinetic . | . . . Thermal 11 | . . 11 Explosive 8 | . . 8 Electromagnetic . | . . . Robot Hit Streak 2 | . . 2 Robot Miss Streak 3 | . . 3 Penetration Max . | . . . Secondary Targets . | . . . Shots Hit Robots 7 | . . 7 Core Hits 25 | . . 25 Critical Kills . | . . . Critical Parts Destroyed . | . . . Critical Strikes 1 | . . 1 Burn 1 | . . 1 Melee Attacks 1 | . . 1 Impact 1 | . . 1 Slashing . | . . . Piercing . | . . . Sneak Attacks . | . . . Combat Hostiles . | . . . Follow-up Attacks . | . . . Damage Inflicted 1078 | . . 1078 Guns 97 | . . 97 Cannons . | . . . Explosions 981 | . . 981 Melee . | . . . Ramming . | . . . Kinetic . | . . . Thermal 97 | . . 97 Explosive 981 | . . 981 Electromagnetic . | . . . Impact . | . . . Slashing . | . . . Piercing . | . . . Highest Corruption . | . . . Average Corruption . | . . . Corruption Purged . | . . . Corruption Blocked . | . . . Overload Shots . | . . . Overflow Damage 68 | . . 68 Projectiles . | . . . Explosions 68 | . . 68 Melee . | . . . Knockbacks . | . . . Impact . | . . . Kinetic . | . . . Secondary . | . . . Self-Inflicted Damage 89 | . . 89 Shots 3 | . . 3 Rammed . | . . . Targets Rammed . | . . . Kicked . | . . . Crushed . | . . . Highest Temperature 70 | . . 70 Average Temperature 26 | . . 26 Received Heat Transfer 118 | . 6 112 Siege Activations . | . . . Robots Corrupted . | . . . Combat Hostiles . | . . . Parts Fried . | . . . Impact Corruptions . | . . . Robots Melted . | . . . Combat Hostiles . | . . . Parts Melted . | . . . Heat Transferred 296 | . . 296 Parts Sabotaged . | . . . Parts Stolen . | . . . Parts Stripped . | . . . Power Chain Reactions . | . . . Alert | -11 -10 -10 ------- Run | Yrd Mat Min Peak Influence 144 | . 20 144 Initial 7 | . . 7 Average 56 | . 4 75 Maximum Alert Level . | . . . Low Security (%) 100 | 100 100 100 Level 1 . | . . . Level 2 . | . . . Level 3 . | . . . Level 4 . | . . . Level 5 . | . . . High Security . | . . . Max Security . | . . . Squads Dispatched 1 | . . 1 Investigation 1 | . . 1 Extermination . | . . . Reinforcement . | . . . Assault . | . . . Garrison . | . . . Intercept . | . . . Searches Triggered . | . . . Construction Impeded . | . . . Haulers Reinforced . | . . . Active Scanning Responses . | . . . Cargo Convoy Interrupts . | . . . Stealth | -11 -10 -10 --------- Run | Yrd Mat Min Distress Signals 1 | . 1 . Communications Jammed . | . . . Distress Signals . | . . . Times Spotted 31 | . 4 27 Peak Tracking Total 15 | . 4 15 Tactical Retreats 2 | . . 2 Traps | -11 -10 -10 ------- Run | Yrd Mat Min Traps Triggered . | . . . Indirectly . | . . . Trap Hack Attempts . | . . . Triggered . | . . . Disarmed . | . . . Reprogrammed . | . . . Reused . | . . . Traps Extracted . | . . . Installed . | . . . Triggered . | . . . Machines | -11 -10 -10 ---------- Run | Yrd Mat Min Machines Disabled . | . . . Max in Single Turn . | . . . Machines Repaired . | . . . Machines Dismantled . | . . . Machines Sabotaged . | . . . Overloaded Fab Kills . | . . . Hacking | -11 -10 -10 --------- Run | Yrd Mat Min Machines Accessed 2 | . 1 1 Terminals 1 | . 1 . Fabricators . | . . . Repair Stations . | . . . Recycling Units . | . . . Scanalyzers . | . . . Garrison Access . | . . . Total Hacks 2 | . 1 1 Successful 2 | . 1 1 Failed . | . . . Catastrophic . | . . . Database Lockouts . | . . . Manual . | . . . Terminals 1 | . 1 . Fabricators . | . . . Repair Stations . | . . . Recycling Units . | . . . Scanalyzers . | . . . Garrison Access . | . . . Terminal Hacks 2 | . 1 1 Open Door 1 | . . 1 Hauler Manifests 1 | . 1 . Fabricator Hacks . | . . . Repair Station Hacks . | . . . Recycling Unit Hacks . | . . . Scanalyzer . | . . . Garrison Access Hacks . | . . . Unauthorized Hacks . | . . . Terminals . | . . . Fabricators . | . . . Repair Stations . | . . . Recycling Units . | . . . Scanalyzers . | . . . Garrison Access . | . . . Data Cores Recovered . | . . . Used . | . . . Hacking Detections . | . . . Full Trace Events . | . . . Feedback Events . | . . . Feedback Blocked . | . . . Robot Schematics Acquired . | . . . Robots Built . | . . . Authchips . | . . . Time . | . . . Total Robot Build Rating . | . . . Part Schematics Acquired . | . . . Parts Built . | . . . Authchips . | . . . Time . | . . . Total Part Build Rating . | . . . Parts Repaired . | . . . Time . | . . . Parts Recycled . | . . . Recycled Matter . | . . . Retrieved Matter . | . . . Retrieved Components . | . . . Parts Scanalyzed . | . . . Part Schematics Acquired . | . . . Parts Damaged . | . . . Bothacking | -11 -10 -10 ------------ Run | Yrd Mat Min Used RIF Installer . | . . . Robots Hacked . | . . . Non-combat . | . . . Combat . | . . . Robot Hacks Applied . | . . . Relay Couplers Released . | . . . Fabnet Peak Effective % . | . . . Robots Rewired . | . . . Allies Hacked . | . . . Hacks Repelled . | . . . Allies | -11 -10 -10 -------- Run | Yrd Mat Min Total Allies . | . . . Largest Group . | . . . Highest-Rated Group . | . . . Highest-Rated Ally . | . . . Total Orders . | . . . Ally Attacks . | . . . Total Damage . | . . . Kills . | . . . Allies Corrupted . | . . . Allies Melted . | . . . Intel | -11 -10 -10 ------- Run | Yrd Mat Min Robot Analysis Total . | . . . Derelict Logs Recovered . | . . . Drone Launches . | . . . Drone Recoveries . | . . . Exploration | -11 -10 -10 ------------- Run | Yrd Mat Min Turns Passed 438 | 3 113 322 Spaces Moved 311 | 3 95 213 Core . | . . . Treads . | . . . Legs 309 | 3 95 211 Wheels 2 | . . 2 Hover . | . . . Flight . | . . . Fastest Speed 100 | 120 120 100 Average Speed 124 | 120 120 126 Slowest Speed 260 | 120 120 260 Overloaded Moves . | . . . Propulsion Burnouts . | . . . Robots Hopped . | . . . Cave-ins Triggered . | . . . Exploration Rate (%) 33 | 2 31 66 Regions Visited 2 Branch Regions 1 Pre-discovered Areas . | . . . Known Exits Taken . | . . . Unknown Exits Taken 2 | 1 1 . Scrap Searched . | . . . Spaces Dug . | . . . Terrain Destroyed 63 | . . 63 Melee . | . . . Projectile . | . . . AOE 63 | . . 63 Terrain Rammed . | . . . Walls Destroyed . | . . . Machines Disabled . | . . . Actions | -11 -10 -10 --------- Run | Yrd Mat Min Total 342 | 2 94 246 Wait 3 | . . 3 Move 309 | 2 94 213 Hop . | . . . Pick Up 2 | . . 2 Fast Attach 4 | . . 4 Attach 3 | . . 3 Detach 1 | . . 1 Swap 1 | . . 1 Drop 3 | . . 3 Fire 15 | . . 15 Melee 1 | . . 1 Ram . | . . . Kick . | . . . Crush . | . . . Escape Stasis . | . . . Rewire . | . . . Trap . | . . . Miscellaneous . | . . . Route ------- -11/Scrapyard -10/Materials -10/Mines (discovered 1 exit: [*Mat]) History --------- Turn | Location | Event 1 | -11/Scrapyard | Discovered new exit (range 0) 4 | -11/Scrapyard | Entered Materials 106 | -10/Materials | Discovered new exit (range 8) 117 | -10/Materials | Entered Mines 121 | -10/Mines | Met a Derelict shopkeep closing up shop 239 | -10/Mines | Discovered new exit (range 10) 298 | -10/Mines | Received a Rocket Launcher from a helpful Derelict 326 | -10/Mines | Build established: Mutant 359 | -10/Mines | Assembled infested the area 427 | -10/Mines | Destroyed 14 combat bots 436 | -10/Mines | Core integrity fell below 50% 438 | -10/Mines | Core integrity fell below 20% 439 | -10/Mines | Destroyed by D-53 Grenadier with Mini Grenade Launcher Last Messages --------------- 00396_ The unstable cave ceiling collapses. 00401_ as-87175 sneak attacks. 00401_ K-01 Serf system corrupted by crushing effect. 00401_ K-01 Serf knocked back. 00406_ as-06181 destroyed. 00406_ Destroyed Asb. F-torch. 00406_ as-65310 destroyed. 00406_ as-87175 destroyed. 00408_ Aluminum Leg destroyed. 00408_ as-36851 destroyed. 00410_ as-76100 destroyed. 00421_ Dropped Rocket Launcher. 00428_ Plasma Injector explodes. 00428_ Med. Laser destroyed. 00429_ Imp. Heat Sink destroyed. 00429_ Aluminum Leg destroyed. 00434_ Pulse Rifle destroyed. 00435_ Deuterium Engine destroyed. 00439_ Com. Wheel destroyed. Map ----- +----------------------------------------------------+ | ??# ## ##??## ##?????### #???????????? | | ??# #####???# #????## #?????###???? | | ??# ##???????# ###### ###### ##??? | | ??## ##????????## [ ## #??? | | ??## #??????????## #??? | | ??# ##??????????## ### #???? | | ??# #???????????# #?# ##????? | | ??# #??????#????## ##?## ##?????? | | ??# ## #?????? #????####???## ##?????? | | ??# #### #?????? #???????????# < #?????? | | ??# #??# #????? ???????????## #?????? | | ??# ##?? ???? ????????????##### ##???## | | ??## #??? ???# ????????????????## ##?## | | ???# #???# ### ????????????????## ### | | ???# #????# #### #?????????????### | | ???# ##???? ###??# #?????####??## | | ???# ###????#????# ????## ##?# ####### | | ???# ##?? #??### #????# #?# ##?????? | | ???# ## #??# ###??# #?## ##??????? | | ???## #??# ##?# #### #???????? | | ????# #?## #### ## ##???????? | | ????# #### #### #????????? | | ????# ##?# ;### ##????????? | | ????# ## ### ### ##?????????? | | ????# #?## ## #######??????????? | | ????# #??# # @a ##??????????????? | | ????# #??#" ### ## d #??????????????? | | ???## ##?# ### # #??????????????? | | ???# ### ## ### d ##?????????????? | | ???## # ?????????? | | ????### ?????????? | | ??????## %% ## ###########??????????? | | ???????## # ##????????????????????? | | ???????## ## #?????????????????????? | | ?????### #?# #?????????????????????? | | ?????# ##?# #?????????????????????? | | ?????# #?? #?????????????????????? | | ?????# ## ###?? #?????????????????????? | | ?????### ### ???? ?????????????????????? | | ???????####?? %*??? ##?????????????????????? | | ????????????? [= ??#???????????????????????? | | ?????????????## ?????????????????????????? | | ?????????????? % ###????????????????????????? | | ????????????? % ??????????????????????????? | | ???????????? # ##?????????????????????????? | | ?????????????# ###??????????????????????????? | | ?????????????## ????????????????????????????? | | ??????????????### % #????????????????????????????? | | ????????????????# ##????????????????????????????? | | ????????????????? ??????????????????????????????? | +----------------------------------------------------+ Best States ------------- Heat Dissipation 39 Energy Generation 14 Energy Capacity 275 Matter Stores 300 Matter Capacity 300 Sight Range 16 Terrain Scan Density 10 Evasion (%) 55 Item Schematics ----------------- None Robot Schematics ------------------ None Fabricated ------------ Nothing Alien Tech Used ----------------- None Achievements -------------- None Challenges ------------ None Game ------ Seed PowerOvertunedRedirector Manual? 0 Play Time 00:06:38 Cumulative 114.2 hours Start 2024.08.30 @ 09:04:03 End 2024.08.30 @ 09:07:51 Sessions 1 Manual Loads 0 Difficulty Rogue Special Mode None Game No. 188 Rogue 187 Adventurer 1 Explorer 0 Win Type - Total 0 Types 0/0/0/0/0/0/0/0/0 Lore% 62 Gallery% 65 Achievement% 49 Wizard Run 0 Options --------- Layout 1 ASCII 0 Keyboard 0 Movement Mouse Keybinds 0 Fullscreen 2 Font 20/SmallcapsGlow Map View 54x42 Zoom Use 0% Tactical HUD 1 Map Filters NONE Filters NONE Steam 0 RUN: 1ac68c94-cb1e-4e07-9f2a-d70a4d15fa89